[Event "FIDE Grand Swiss 2023"]
[Site "Villa Marina, Douglas, Isle of Man"]
[Date "2023.11.01"]
[Round "7.8"]
[White "Deac, Bogdan-Daniel"]
[Black "Yakubboev, Nodirbek"]
[Result "1-0"]
[WhiteElo "2701"]
[BlackElo "2616"]
[EventDate "2023.10.25"]
[ECO "C54"]
[PlyCount "111"]
[BlackFideId "14203987"]
[TimeControl "40/100 + 20/50 + 15 + 30s/move"]
[WhiteFideId "1226380"]

1.e4 {[%clk 01:40:57][%emt 00:00:02]} 1...e5 {[%clk 01:39:56][%emt 00:00:54]} 
2.Nf3 {[%clk 01:41:24][%emt 00:00:13]} 2...Nc6 {[%clk 01:40:22][%emt 00:00:05]} 
3.Bc4 {[%clk 01:41:48][%emt 00:00:06]} 3...Bc5 {[%clk 01:40:38][%emt 00:00:14]} 
4.c3 {[%clk 01:42:12][%emt 00:00:05]} 4...Nf6 {[%clk 01:41:03][%emt 00:00:05]} 
5.d3 {[%clk 01:42:39][%emt 00:00:04]} 5...d6 {[%clk 01:40:42][%emt 00:00:51]} 
6.O-O {[%clk 01:43:06][%emt 00:00:02]} 6...a5 {[%clk 01:41:06][%emt 00:00:06]} 
7.Re1 {[%clk 01:43:29][%emt 00:00:08]} 7...Ba7 {[%clk 01:41:17][%emt 00:00:19]} 
8.Na3 {[%clk 01:43:56][%emt 00:00:03]} 8...O-O {[%clk 01:41:24][%emt 00:00:22]} 
9.h3 {[%clk 01:44:24][%emt 00:00:02]} 9...Ne7 {[%clk 01:41:05][%emt 00:00:50]} 
10.d4 {[%clk 01:44:49][%emt 00:00:05]} 10...Ng6 {[%clk 01:40:56][%emt 00:00:38]} 
11.Be3 {[%clk 01:44:27][%emt 00:00:52]} 11...Bd7 {[%clk 01:34:45][%emt
00:06:42]} 12.Qc2 {[%clk 01:34:40][%emt 00:10:17]} 12...Bc6 {[%clk
01:25:29][%emt 00:09:46]} 13.Bd3 {[%clk 01:28:28][%emt 00:06:42]} 13...Re8 
{[%clk 01:18:51][%emt 00:07:08]} 14.Nb5 {[%clk 01:01:41][%emt 00:27:17]} 
14...exd4 {[%clk 00:57:09][%emt 00:22:13]} 15.Bxd4 {[%clk 01:00:10][%emt
00:02:02]} 15...Bxb5 {[%clk 00:54:46][%emt 00:02:53]} 16.Bxb5 {[%clk
00:58:13][%emt 00:02:26]} 16...c6 {[%clk 00:55:14][%emt 00:00:02]} 17.Bf1 
{[%emt 00:03:04]} 17...Ne5 {[%clk 00:45:12][%emt 00:10:31]} 18.Nd2 {[%clk
00:55:33][%emt 00:00:37]} 18...h5 {[%clk 00:43:43][%emt 00:01:58]} 19.Rad1 
{[%clk 00:52:56][%emt 00:03:07]} 19...Qe7 {[%clk 00:38:10][%emt 00:06:03]} 
20.Bxa7 {[%clk 00:43:54][%emt 00:09:33]} 20...Rxa7 {[%clk 00:38:38][%emt
00:00:01]} 21.f4 {[%clk 00:44:17][%emt 00:00:07]} 21...Ned7 {[%clk
00:27:16][%emt 00:11:51]} 22.Nc4 {[%clk 00:32:11][%emt 00:12:37]} 22...d5 
{[%clk 00:27:32][%emt 00:00:15]} 23.Qf2 {[%clk 00:27:42][%emt 00:04:58]} 
23...Qc5 {[%clk 00:27:50][%emt 00:00:12]} 24.exd5 {[%clk 00:27:44][%emt
00:00:28]} 24...Rxe1 {[%clk 00:22:43][%emt 00:05:37]} 25.Rxe1 {[%clk
00:28:07][%emt 00:00:06]} 25...Qxf2+ {[%clk 00:21:23][%emt 00:01:51]} 26.Kxf2 
{[%clk 00:28:35][%emt 00:00:01]} 26...cxd5 {[%clk 00:20:01][%emt 00:01:52]} 
27.Nd6 {[%clk 00:26:11][%emt 00:02:54]} 27...Kf8 {[%clk 00:19:01][%emt
00:01:29]} 28.Kf3 {[%clk 00:24:26][%emt 00:02:15]} 28...Nc5 {[%clk
00:15:56][%emt 00:03:36]} 29.g4 {[%clk 00:19:25][%emt 00:05:32]} 29...hxg4+ 
{[%clk 00:14:15][%emt 00:02:11]} 30.hxg4 {[%clk 00:19:52][%emt 00:00:03]} 
30...b6 {[%clk 00:11:08][%emt 00:03:37]} 31.Rd1 {[%clk 00:16:47][%emt 00:03:34]} 
31...Rd7 {[%clk 00:07:36][%emt 00:04:03]} 32.Nf5 {[%clk 00:16:08][%emt
00:01:09]} 32...Ne6 {[%clk 00:05:21][%emt 00:02:45]} 33.Bb5 {[%clk
00:07:07][%emt 00:09:31]} 33...Rd8 {[%clk 00:05:50]} 34.Rh1 {[%clk
00:03:37][%emt 00:03:59]} 34...Ng8 {[%clk 00:05:19][%emt 00:01:02]} 35.Rh8 
{[%clk 00:02:19][%emt 00:01:47]} 35...d4 {[%clk 00:05:15][%emt 00:00:34]} 
36.Bc4 {[%clk 00:02:23][%emt 00:00:26]} 36...dxc3 {[%clk 00:04:47][%emt
00:00:59]} 37.bxc3 {[%clk 00:02:46][%emt 00:00:07]} 37...Rd2 {[%clk
00:03:06][%emt 00:02:10]} 38.g5 {[%clk 00:02:25][%emt 00:00:51]} 38...Rc2 
{[%clk 00:01:35][%emt 00:02:02]} 39.g6 {[%clk 00:01:30][%emt 00:01:25]} 
39...Rxc3+ {[%clk 00:01:44][%emt 00:00:21]} 40.Ne3 {[%clk 00:01:37][%emt
00:00:23]} 40...Nd8 {[%clk 00:00:51][%emt 00:01:23]} 41.Ke4 {[%clk
00:00:33][%emt 00:01:34]} 41...b5 {[%clk 00:49:22][%emt 00:02:00]} 42.Bd5 
{[%clk 00:47:39][%emt 00:03:24]} 42...Rc1 {[%clk 00:44:53][%emt 00:04:59]} 
43.f5 {[%clk 00:41:46][%emt 00:06:22]} 43...Rg1 {[%clk 00:41:34][%emt 00:03:48]} 
44.Kf4 {[%clk 00:39:51][%emt 00:02:26]} 44...a4 {[%clk 00:37:20][%emt 00:04:45]} 
45.Ng4 {[%clk 00:39:33][%emt 00:00:46]} 45...Rd1 {[%clk 00:34:07][%emt
00:03:44]} 46.Ke4 {[%clk 00:39:34][%emt 00:00:29]} 46...Re1+ {[%clk
00:25:55][%emt 00:08:41]} 47.Kd4 {[%clk 00:38:25][%emt 00:01:40]} 47...Rd1+ 
{[%clk 00:25:46][%emt 00:00:40]} 48.Kc5 {[%clk 00:37:59][%emt 00:00:55]} 
48...Rxd5+ {[%clk 00:25:34] [%emt 00:00:43]} 49.Kxd5 {[%clk 00:38:21] [%emt
00:00:08]} 49...fxg6 {[%clk 00:26:01] [%emt 00:00:02]} 50.fxg6 {[%clk 00:38:30]
[%emt 00:00:22]} 50...b4 {[%clk 00:26:30]} 51.Ne5 {[%clk 00:38:35] [%emt
00:00:25]} 51...b3 {[%clk 00:26:50] [%emt 00:00:11]} 52.axb3 {[%clk 00:39:00]
[%emt 00:00:05]} 52...axb3 {[%clk 00:27:16] [%emt 00:00:04]} 53.Nd7+ {[%clk
00:39:18] [%emt 00:00:13]} 53...Ke7 {[%clk 00:27:38] [%emt 00:00:08]} 54.Rxg8 
{[%clk 00:39:43] [%emt 00:00:04]} 54...Kxd7 {[%clk 00:26:45] [%emt 00:01:22]} 
55.Rxg7+ {[%clk 00:40:06] [%emt 00:00:07]} 55...Ke8 {[%clk 00:27:13] [%emt
00:00:03]} 56.Ra7 {[%clk 00:40:07] [%emt 00:00:29]} 1-0

[Event "FIDE Grand Swiss 2023"]
[Site "Villa Marina, Douglas, Isle of Man"]
[Date "2023.11.01"]
[Round "7.9"]
[White "Kuzubov, Yuriy"]
[Black "Artemiev, Vladislav"]
[Result "1-0"]
[WhiteElo "2625"]
[BlackElo "2697"]
[EventDate "2023.10.25"]
[ECO "D39"]
[PlyCount "95"]
[BlackClock "00:01:52"]
[BlackFideId "24101605"]
[TimeControl "40/100 + 20/50 + 15 + 30s/move"]
[WhiteClock "00:09:12"]
[WhiteFideId "14112906"]

1.d4 {[%clk 01:40:56][%emt 00:00:03]} 1...Nf6 {[%clk 01:40:25][%emt 00:00:37]} 
2.c4 {[%clk 01:41:20][%emt 00:00:06]} 2...e6 {[%clk 01:40:33][%emt 00:00:21]} 
3.Nf3 {[%clk 01:41:43][%emt 00:00:06]} 3...d5 {[%clk 01:40:31][%emt 00:00:33]} 
4.Nc3 {[%clk 01:42:07][%emt 00:00:06]} 4...Bb4 {[%clk 01:39:54][%emt 00:01:07]} 
5.Bg5 {[%clk 01:42:14][%emt 00:00:22]} 5...dxc4 {[%clk 01:39:45][%emt 00:00:40]} 
6.e4 {[%clk 01:41:53][%emt 00:00:51]} 6...b5 {[%clk 01:39:27][%emt 00:00:50]} 
7.a4 {[%clk 01:41:11][%emt 00:01:12]} 7...c5 {[%clk 01:39:25][%emt 00:00:32]} 
8.axb5 {[%clk 01:38:59][%emt 00:02:42]} 8...cxd4 {[%clk 01:39:36][%emt
00:00:19]} 9.Nxd4 {[%clk 01:38:34][%emt 00:00:54]} 9...h6 {[%clk 01:39:26][%emt
00:00:41]} 10.Be3 {[%clk 01:14:57][%emt 00:24:07]} 10...Nxe4 {[%clk
01:36:24][%emt 00:03:32]} 11.Qc2 {[%clk 01:11:31][%emt 00:03:55]} 11...Nd6 
{[%clk 01:35:01][%emt 00:01:53]} 12.Qa4 {[%clk 01:03:05][%emt 00:08:57]} 
12...Bxc3+ {[%clk 01:32:38][%emt 00:02:54]} 13.bxc3 {[%clk 01:03:31][%emt
00:00:04]} 13...O-O {[%clk 01:03:29][%emt 00:29:39]} 14.Bxc4 {[%clk
00:57:19][%emt 00:06:42]} 14...Nxc4 {[%clk 00:47:00][%emt 00:16:59]} 15.Qxc4 
{[%clk 00:57:31][%emt 00:00:17]} 15...Bb7 {[%clk 00:43:06][%emt 00:04:24]} 
16.O-O {[%clk 00:55:19][%emt 00:02:41]} 16...a6 {[%clk 00:42:54][%emt 00:00:44]} 
17.b6 {[%clk 00:51:14][%emt 00:04:35]} 17...Qh4 {[%clk 00:29:13][%emt 00:14:11]} 
18.Qc7 {[%clk 00:29:04][%emt 00:22:39]} 18...Qe4 {[%clk 00:28:16][%emt
00:01:27]} 19.Qg3 {[%clk 00:25:52][%emt 00:03:42]} 19...Kh7 {[%clk
00:26:52][%emt 00:01:55]} 20.Nb3 {[%clk 00:19:27][%emt 00:06:54]} 20...Nd7 
{[%clk 00:26:43][%emt 00:00:40]} 21.Rfd1 {[%clk 00:19:31][%emt 00:00:25]} 
21...Rad8 {[%clk 00:10:19][%emt 00:16:54]} 22.Na5 {[%clk 00:19:05][%emt
00:00:57]} 22...Nf6 {[%clk 00:08:56][%emt 00:01:53]} 23.c4 {[%clk 00:16:22][%emt
00:03:13]} 23...Rxd1+ {[%clk 00:07:46][%emt 00:01:41]} 24.Rxd1 {[%clk
00:16:47][%emt 00:00:05]} 24...Rd8 {[%clk 00:08:13][%emt 00:00:03]} 25.Rf1 
{[%clk 00:14:29][%emt 00:02:47]} 25...Ba8 {[%clk 00:04:06][%emt 00:04:38]} 
26.Qf3 {[%clk 00:13:33][%emt 00:01:25]} 26...Qxf3 {[%clk 00:03:45][%emt
00:00:52]} 27.gxf3 {[%clk 00:13:59][%emt 00:00:04]} 27...Bxf3 {[%clk
00:04:10][%emt 00:00:05]} 28.c5 {[%clk 00:12:56][%emt 00:01:32]} 28...e5 {[%clk
00:02:53][%emt 00:01:47]} 29.Rc1 {[%clk 00:12:02][%emt 00:01:24]} 29...Nd5 
{[%clk 00:00:34][%emt 00:02:50]} 30.c6 {[%clk 00:10:31][%emt 00:02:01]} 
30...Nxb6 {[%clk 00:00:37][%emt 00:00:27]} 31.Bxb6 {[%clk 00:10:41][%emt
00:00:21]} 31...Rd6 {[%clk 00:00:50][%emt 00:00:16]} 32.Kf1 {[%clk
00:08:23][%emt 00:02:47]} 32...Bg4 {[%clk 00:00:43][%emt 00:00:38]} 33.Be3 
{[%clk 00:08:03][%emt 00:00:49]} 33...f5 {[%clk 00:00:40][%emt 00:00:34]} 34.f4 
{[%clk 00:07:52][%emt 00:00:41]} 34...exf4 {[%clk 00:01:02][%emt 00:00:08]} 
35.Bxf4 {[%clk 00:08:06][%emt 00:00:15]} 35...Rd4 {[%clk 00:01:27][%emt
00:00:05]} 36.c7 {[%clk 00:06:56][%emt 00:01:41]} 36...Rxf4+ {[%clk
00:01:49][%emt 00:00:07]} 37.Kg1 {[%clk 00:07:17][%emt 00:00:08]} 37...Ra4 
{[%clk 00:01:42][%emt 00:00:38]} 38.c8=Q {[%clk 00:07:31][%emt 00:00:17]} 
38...Rxa5 {[%clk 00:02:05][%emt 00:00:06]} 39.h3 {[%clk 00:07:38][%emt
00:00:22]} 39...Bh5 {[%clk 00:02:08][%emt 00:00:28]} 40.Rc7 {[%clk
00:07:34][%emt 00:00:34]} 40...Ra1+ {[%clk 00:02:14][%emt 00:00:24]} 41.Kf2 
{[%clk 00:07:55][%emt 00:00:09]} 41...Ra2+ {[%clk 00:02:30][%emt 00:00:15]} 
42.Ke1 {[%clk 00:07:57][%emt 00:00:27]} 42...Ra1+ {[%clk 00:02:28][%emt
00:00:32]} 43.Kd2 {[%clk 00:08:17][%emt 00:00:10]} 43...Ra2+ {[%clk
00:02:15][%emt 00:00:44]} 44.Kc3 {[%clk 00:08:34][%emt 00:00:12]} 44...f4 
{[%clk 00:01:09][%emt 00:01:36]} 45.Qf5+ {[%clk 00:08:06][%emt 00:00:58]} 
45...Bg6 {[%clk 00:01:30][%emt 00:00:09]} 46.Qxf4 {[%clk 00:08:28][%emt
00:00:08]} 46...Ra3+ {[%clk 00:01:35] [%emt 00:00:25]} 47.Kb2 {[%clk 00:08:50]
[%emt 00:00:08]} 47...Rxh3 {[%clk 00:01:58] [%emt 00:00:08]} 48.Qe5 {[%clk
00:09:12] [%emt 00:00:07]} 1-0

[Event "FIDE Grand Swiss 2023"]
[Site "Villa Marina, Douglas, Isle of Man"]
[Date "2023.11.01"]
[Round "7.10"]
[White "Fedoseev, Vladimir"]
[Black "Zhalmakhanov, Ramazan"]
[Result "1-0"]
[WhiteElo "2691"]
[BlackElo "2447"]
[EventDate "2023.10.25"]
[ECO "D11"]
[PlyCount "157"]
[BlackFideId "13706357"]
[TimeControl "40/100 + 20/50 + 15 + 30s/move"]
[WhiteFideId "24130737"]

1.d4 {[%clk 01:33:29][%emt 00:07:30]} 1...d5 {[%clk 01:40:48][%emt 00:00:12]} 
2.Nf3 {[%clk 01:33:47][%emt 00:00:11]} 2...Nf6 {[%clk 01:41:05][%emt 00:00:14]} 
3.c4 {[%clk 01:34:11][%emt 00:00:07]} 3...c6 {[%clk 01:41:23][%emt 00:00:12]} 
4.e3 {[%clk 01:34:09][%emt 00:00:31]} 4...e6 {[%clk 01:40:58][%emt 00:00:54]} 
5.Qc2 {[%clk 01:32:57][%emt 00:01:43]} 5...Nbd7 {[%clk 01:39:24][%emt 00:02:05]} 
6.b3 {[%clk 01:33:14][%emt 00:00:13]} 6...b6 {[%clk 01:38:48][%emt 00:01:05]} 
7.Bd3 {[%clk 01:28:48][%emt 00:04:56]} 7...Bb7 {[%clk 01:38:46][%emt 00:00:32]} 
8.O-O {[%clk 01:29:06][%emt 00:00:11]} 8...Bd6 {[%clk 01:34:50][%emt 00:04:26]} 
9.Bb2 {[%clk 01:21:15][%emt 00:08:22]} 9...O-O {[%clk 01:23:57][%emt 00:11:23]} 
10.Nc3 {[%clk 01:20:10][%emt 00:01:34]} 10...c5 {[%clk 01:17:58][%emt 00:06:30]} 
11.cxd5 {[%clk 01:18:47][%emt 00:01:53]} 11...exd5 {[%clk 01:18:17][%emt
00:00:11]} 12.Rfd1 {[%clk 01:15:45][%emt 00:03:31]} 12...Qe7 {[%clk
01:16:01][%emt 00:02:48]} 13.a4 {[%clk 01:15:26][%emt 00:00:49]} 13...a6 {[%clk
01:11:39][%emt 00:04:52]} 14.a5 {[%clk 01:09:10][%emt 00:06:46]} 14...b5 {[%clk
01:09:52][%emt 00:02:17]} 15.dxc5 {[%clk 01:09:38][%emt 00:00:02]} 15...Nxc5 
{[%clk 01:10:06][%emt 00:00:16]} 16.Bf5 {[%clk 01:08:03][%emt 00:02:05]} 
16...g6 {[%clk 00:58:43][%emt 00:11:53]} 17.Bh3 {[%clk 01:06:00][%emt 00:02:34]} 
17...Ne6 {[%clk 00:54:40][%emt 00:04:32]} 18.Ne2 {[%clk 01:04:01][%emt
00:02:28]} 18...Ne4 {[%clk 00:52:53][%emt 00:02:18]} 19.Ned4 {[%clk
00:55:33][%emt 00:08:58]} 19...Rac8 {[%clk 00:48:59][%emt 00:04:24]} 20.Qd3 
{[%clk 00:54:32][%emt 00:01:31]} 20...N6c5 {[%clk 00:47:42][%emt 00:01:47]} 
21.Qe2 {[%clk 00:54:43][%emt 00:00:19]} 21...Rc7 {[%clk 00:46:23][%emt
00:01:50]} 22.Rdc1 {[%clk 00:49:40][%emt 00:05:31]} 22...Bc8 {[%clk
00:38:49][%emt 00:08:05]} 23.Bxc8 {[%clk 00:49:59][%emt 00:00:11]} 23...Rfxc8 
{[%clk 00:39:14][%emt 00:00:05]} 24.Qd1 {[%clk 00:49:51][%emt 00:00:38]} 
24...Nf6 {[%clk 00:34:55][%emt 00:04:49]} 25.Ne2 {[%clk 00:45:36][%emt
00:04:45]} 25...Nce4 {[%clk 00:35:01][%emt 00:00:24]} 26.h3 {[%clk
00:38:58][%emt 00:07:08]} 26...Rxc1 {[%clk 00:30:32][%emt 00:04:59]} 27.Rxc1 
{[%clk 00:39:27][%emt 00:00:01]} 27...Rxc1 {[%clk 00:30:21][%emt 00:00:40]} 
28.Qxc1 {[%clk 00:36:38][%emt 00:03:20]} 28...Qc7 {[%clk 00:30:20][%emt
00:00:31]} 29.Ne1 {[%clk 00:29:47][%emt 00:07:20]} 29...Qxc1 {[%clk
00:20:11][%emt 00:10:40]} 30.Nxc1 {[%clk 00:30:10][%emt 00:00:08]} 30...Nd7 
{[%clk 00:20:35][%emt 00:00:06]} 31.Nc2 {[%clk 00:22:54][%emt 00:07:44]} 
31...Kf8 {[%clk 00:14:50][%emt 00:06:16]} 32.f3 {[%clk 00:20:40][%emt 00:02:44]} 
32...Nec5 {[%clk 00:14:59][%emt 00:00:21]} 33.Bc3 {[%clk 00:20:19][%emt
00:00:51]} 33...Ke7 {[%clk 00:13:29][%emt 00:01:59]} 34.Nb4 {[%clk
00:16:30][%emt 00:04:20]} 34...Ke6 {[%clk 00:13:39][%emt 00:00:20]} 35.Kf2 
{[%clk 00:16:11][%emt 00:00:48]} 35...Be5 {[%clk 00:11:16][%emt 00:02:53]} 
36.Bd4 {[%clk 00:15:50][%emt 00:00:51]} 36...Kd6 {[%clk 00:11:12][%emt
00:00:35]} 37.Nc2 {[%clk 00:13:47][%emt 00:02:32]} 37...Nb7 {[%clk
00:09:07][%emt 00:02:35]} 38.b4 {[%clk 00:14:02][%emt 00:00:16]} 38...Nd8 
{[%clk 00:08:52][%emt 00:00:45]} 39.Nd3 {[%clk 00:14:07][%emt 00:00:24]} 
39...Nc6 {[%clk 00:06:52][%emt 00:02:29]} 40.f4 {[%clk 00:12:56][%emt 00:01:41]} 
40...Bf6 {[%clk 00:05:48][%emt 00:01:34]} 41.Kf3 {[%clk 00:03:30][%emt
00:09:56]} 41...Be7 {[%clk 00:48:55][%emt 00:07:23]} 42.Bc3 {[%clk
00:50:36][%emt 00:03:23]} 42...Ke6 {[%clk 00:43:11][%emt 00:06:16]} 43.g4 
{[%clk 00:44:48][%emt 00:06:18]} 43...f5 {[%clk 00:39:36][%emt 00:04:06]} 44.g5 
{[%clk 00:44:58][%emt 00:00:19]} 44...Bd6 {[%clk 00:36:39][%emt 00:03:27]} 
45.h4 {[%clk 00:44:40][%emt 00:00:48]} 45...Kf7 {[%clk 00:35:55][%emt 00:01:14]} 
46.Bd4 {[%clk 00:42:16][%emt 00:02:55]} 46...Bf8 {[%clk 00:34:13][%emt
00:02:11]} 47.Ke2 {[%clk 00:41:58][%emt 00:00:47]} 47...Bd6 {[%clk
00:30:49][%emt 00:03:54]} 48.Kd2 {[%clk 00:41:53][%emt 00:00:34]} 48...Bf8 
{[%clk 00:28:50][%emt 00:02:30]} 49.Kc3 {[%clk 00:39:58][%emt 00:02:25]} 
49...Ke6 {[%clk 00:28:35][%emt 00:00:46]} 50.Nce1 {[%clk 00:34:48][%emt
00:05:37]} 50...Kf7 {[%clk 00:26:09][%emt 00:02:59]} 51.Nf3 {[%clk
00:34:49][%emt 00:00:29]} 51...Ke6 {[%clk 00:22:57][%emt 00:03:42]} 52.Ng1 
{[%clk 00:31:31][%emt 00:03:46]} 52...Kf7 {[%clk 00:14:10][%emt 00:09:19]} 
53.Ne2 {[%clk 00:31:45][%emt 00:00:16]} 53...Nd8 {[%clk 00:11:49][%emt
00:02:51]} 54.Kb3 {[%clk 00:30:15][%emt 00:01:59]} 54...Nc6 {[%clk
00:10:14][%emt 00:02:06]} 55.Ng3 {[%clk 00:27:00][%emt 00:03:44]} 55...Bd6 
{[%clk 00:08:19][%emt 00:02:25]} 56.Kc3 {[%clk 00:25:40][%emt 00:01:51]} 
56...Ke7 {[%clk 00:04:07][%emt 00:04:41]} 57.h5 {[%clk 00:23:24][%emt 00:02:46]} 
57...Ke6 {[%clk 00:03:44][%emt 00:00:54]} 58.h6 {[%clk 00:19:18][%emt 00:04:36]} 
58...Kf7 {[%clk 00:03:16][%emt 00:00:57]} 59.Ne2 {[%clk 00:19:32][%emt
00:00:17]} 59...Ke6 {[%clk 00:03:35][%emt 00:00:11]} 60.Kb3 {[%clk
00:17:50][%emt 00:02:12]} 60...Ke7 {[%clk 00:03:27][%emt 00:00:38]} 61.Ng1 
{[%clk 00:16:44][%emt 00:01:36]} 61...Kf7 {[%clk 00:01:34][%emt 00:02:23]} 
62.Nf3 {[%clk 00:17:08][%emt 00:00:07]} 62...Ke6 {[%clk 00:02:01][%emt
00:00:03]} 63.Kc3 {[%clk 00:17:10][%emt 00:00:28]} 63...Be7 {[%clk
00:02:21][%emt 00:00:10]} 64.Bg7 {[%clk 00:14:21][%emt 00:03:18]} 64...Kd6 
{[%clk 00:01:28][%emt 00:01:23]} 65.Nh4 {[%clk 00:14:31][%emt 00:00:20]} 
65...Nf8 {[%clk 00:00:42][%emt 00:01:16]} 66.Nc5 {[%clk 00:11:41][%emt
00:03:20]} 66...Nxa5 {[%clk 00:00:36][%emt 00:00:35]} 67.Nxa6 {[%clk
00:11:44][%emt 00:00:27]} 67...Nc4 {[%clk 00:00:49][%emt 00:00:17]} 68.Kd3 
{[%clk 00:12:01][%emt 00:00:13]} 68...Kd7 {[%clk 00:00:41][%emt 00:00:38]} 
69.Nc5+ {[%clk 00:10:44][%emt 00:01:48]} 69...Ke8 {[%clk 00:00:39][%emt
00:00:33]} 70.Kd4 {[%clk 00:08:10] [%emt 00:03:03]} 70...Kf7 {[%clk 00:00:44]
[%emt 00:00:25]} 71.Bxf8 {[%clk 00:07:58] [%emt 00:00:42]} 71...Bxf8 {[%clk
00:01:02] [%emt 00:00:13]} 72.Nf3 {[%clk 00:08:03] [%emt 00:00:25]} 72...Nb6 
{[%clk 00:00:59] [%emt 00:00:33]} 73.Ne5+ {[%clk 00:08:25] [%emt 00:00:08]} 
73...Ke7 {[%clk 00:01:21] [%emt 00:00:08]} 74.Nc6+ {[%clk 00:07:51] [%emt
00:01:03]} 74...Kd6 {[%clk 00:01:34] [%emt 00:00:18]} 75.Na7 {[%clk 00:08:14]
[%emt 00:00:07]} 75...Nc4 {[%clk 00:01:43] [%emt 00:00:21]} 76.Nxb5+ {[%clk
00:08:38] [%emt 00:00:06]} 76...Kc6 {[%clk 00:02:10] [%emt 00:00:02]} 77.Nc3 
{[%clk 00:08:40] [%emt 00:00:28]} 77...Nb6 {[%clk 00:02:22] [%emt 00:00:19]} 
78.b5+ {[%clk 00:08:55] [%emt 00:00:14]} 78...Kd6 {[%clk 00:02:49] [%emt
00:00:03]} 79.N5a4 {[%clk 00:09:17] [%emt 00:00:08]} 1-0

[Event "FIDE Grand Swiss 2023"]
[Site "Villa Marina, Douglas, Isle of Man"]
[Date "2023.11.01"]
[Round "7.11"]
[White "Giri, Anish"]
[Black "Anton Guijarro, David"]
[Result "1/2-1/2"]
[WhiteElo "2760"]
[BlackElo "2653"]
[EventDate "2023.10.25"]
[ECO "C55"]
[PlyCount "57"]
[BlackClock "00:03:09"]
[BlackFideId "2285525"]
[TimeControl "40/100 + 20/50 + 15 + 30s/move"]
[WhiteClock "00:04:19"]
[WhiteFideId "24116068"]

1.e4 {[%clk 01:40:55][%emt 00:00:03]} 1...e5 {[%clk 01:40:45][%emt 00:00:15]} 
2.Nf3 {[%clk 01:41:19][%emt 00:00:06]} 2...Nc6 {[%clk 01:41:02][%emt 00:00:14]} 
3.Bc4 {[%clk 01:41:32][%emt 00:00:17]} 3...Nf6 {[%clk 01:41:05][%emt 00:00:27]} 
4.d3 {[%clk 01:41:56][%emt 00:00:06]} 4...Be7 {[%clk 01:41:11][%emt 00:00:24]} 
5.O-O {[%clk 01:42:06][%emt 00:00:20]} 5...O-O {[%clk 01:41:21][%emt 00:00:20]} 
6.Nc3 {[%clk 01:41:36][%emt 00:01:00]} 6...d6 {[%clk 01:41:09][%emt 00:00:42]} 
7.a3 {[%clk 01:41:33][%emt 00:00:33]} 7...Be6 {[%clk 01:33:21][%emt 00:08:18]} 
8.Nd5 {[%clk 01:40:39][%emt 00:01:24]} 8...a5 {[%clk 01:29:24][%emt 00:04:27]} 
9.h3 {[%clk 01:40:13][%emt 00:00:54]} 9...h6 {[%clk 01:21:54][%emt 00:08:01]} 
10.Nxf6+ {[%clk 01:31:32][%emt 00:09:12]} 10...Bxf6 {[%clk 01:22:17][%emt
00:00:07]} 11.Bxe6 {[%clk 01:32:00][%emt 00:00:02]} 11...fxe6 {[%clk
01:22:40][%emt 00:00:08]} 12.b3 {[%clk 01:32:14][%emt 00:00:15]} 12...d5 {[%clk
01:16:57][%emt 00:06:12]} 13.Be3 {[%clk 01:23:48][%emt 00:08:57]} 13...Qe8 
{[%clk 01:11:02][%emt 00:06:25]} 14.Re1 {[%clk 01:10:01][%emt 00:14:17]} 
14...Qg6 {[%clk 01:08:45][%emt 00:02:47]} 15.c3 {[%clk 00:47:15][%emt 00:23:16]} 
15...Rf7 {[%clk 00:43:43][%emt 00:25:33]} 16.b4 {[%clk 00:45:23][%emt 00:02:22]} 
16...d4 {[%clk 00:41:00][%emt 00:03:12]} 17.cxd4 {[%clk 00:36:30][%emt
00:09:24]} 17...exd4 {[%clk 00:40:25][%emt 00:01:05]} 18.Bf4 {[%clk
00:36:27][%emt 00:00:32]} 18...axb4 {[%clk 00:36:47][%emt 00:04:08]} 19.axb4 
{[%clk 00:36:00][%emt 00:00:58]} 19...Rxa1 {[%clk 00:36:53][%emt 00:00:24]} 
20.Qxa1 {[%clk 00:36:26][%emt 00:00:03]} 20...Nxb4 {[%clk 00:36:21][%emt
00:01:02]} 21.Qb1 {[%clk 00:31:08][%emt 00:05:49]} 21...c5 {[%clk 00:34:10][%emt
00:02:41]} 22.Qb3 {[%clk 00:30:41][%emt 00:00:57]} 22...Kh7 {[%clk
00:18:37][%emt 00:16:02]} 23.Bg3 {[%clk 00:08:25][%emt 00:22:46]} 23...Rf8 
{[%clk 00:13:00][%emt 00:06:08]} 24.Ra1 {[%clk 00:04:01][%emt 00:04:54]} 
24...Qf7 {[%clk 00:11:13] [%emt 00:02:16]} 25.Bd6 {[%clk 00:03:27] [%emt
00:01:04]} 25...Be7 {[%clk 00:09:27] [%emt 00:02:16]} 26.Bg3 {[%clk 00:03:54]
[%emt 00:00:03]} 26...Bf6 {[%clk 00:07:33] [%emt 00:02:25]} 27.Bd6 {[%clk
00:04:22] [%emt 00:00:01]} 27...Be7 {[%clk 00:09:27][%emt 00:02:16]} 28.Bg3 
{[%clk 00:03:54][%emt 00:00:03]} 28...Bf6 {[%clk 00:11:13][%emt 00:02:16]} 
29.Bd6 {[%clk 00:03:27][%emt 00:01:04]} 1/2-1/2